[Event "11th LCC Super Blitz 2019"]
[Site "London"]
[Date "2019.12.08"]
[Round "11.11"]
[White "Lovell, William Pm"]
[Black "Ball, Charlie J"]
[Result "1-0"]
[ECO "A22"]
[WhiteElo "1831"]
[BlackElo "1249"]
[Annotator "NA"]
[PlyCount "79"]
[EventDate "2019.12.08"]
[EventType "swiss"]
[EventCountry "ENG"]
[SourceTitle "playchess.com"]
[Source "ChessBase"]
[SourceQuality "1"]
[TimeControl "180+2"]

1. c4 {[%emt 0:00:00]} d6 {[%emt 0:00:00]} 2. g3 {[%emt 0:00:01]} Nf6 {[%emt 0:00:05]} 3. Bg2 {[%emt 0:00:02]} Nbd7 {[%emt 0:00:01]} 4. Nc3 {[%emt 0:00:02]} e5 {[%emt 0:00:01]} 5. e3 {[%emt 0:00:07]} Be7 {[%emt 0:00:01]} 6. Nge2 {[%emt 0:00:01]} c6 {[%emt 0:00:02]} 7. O-O {[%emt 0:00:03]} Qc7 {[%emt 0:00:01]} 8. d4 {[%emt 0:00:01]} h5 {[%emt 0:00:17]} 9. b3 {[%emt 0:00:21]} h4 {[%emt 0:00:06]} 10. Ba3 {[%emt 0:00:05]} hxg3 {[%emt 0:00:14]} 11. fxg3 {[%emt 0:00:08]} Ng4 {[%emt 0:00:08]} 12. Rf3 {[%emt 0:00:19]} Nxh2 {[%emt 0:00:18]} 13. Rf2 {[%emt 0:00:16]} Ng4 {[%emt 0:00:01]} 14. Rf3 {[%emt 0:00:02]} Bg5 {[%emt 0:00:09]} 15. Bc1 {[%emt 0:00:08]} Nh2 {[%emt 0:00:06]} 16. Rf5 {[%emt 0:00:10]} Be7 {[%emt 0:00:08]} 17. Qd3 {[%emt 0:00:19]} Nf6 {[%emt 0:00:02]} 18. Rf2 {[%emt 0:00:02]} Nhg4 {[%emt 0:00:01]} 19. Rf1 {[%emt 0:00:03]} Nh2 {[%emt 0:00:04]} 20. Ba3 {[%emt 0:00:19]} Nxf1 {[%emt 0:00:05]} 21. Rxf1 {[%emt 0:00:01]} Ng4 {[%emt 0:00:05]} 22. dxe5 {[%emt 0:00:09]} dxe5 {[%emt 0:00:03]} 23. Bxe7 {[%emt 0:00:02]} Qxe7 {[%emt 0:00:02]} 24. Ne4 {[%emt 0:00:09]} Nh2 {[%emt 0:00:04]} 25. Nd6+ {[%emt 0:00:02]} Kf8 {[%emt 0:00:06]} 26. Rxf7+ {[%emt 0:00:04]} Qxf7 {[%emt 0:00:01]} 27. Nxf7 {[%emt 0:00:01]} Kxf7 {[%emt 0:00:01]} 28. Qd6 {[%emt 0:00:11]} Ng4 {[%emt 0:00:04]} 29. Nc3 {[%emt 0:00:07]} Nxe3 {[%emt 0:00:09]} 30. Qxe5 {[%emt 0:00:01]} Ng4 {[%emt 0:00:01]} 31. Qf4+ {[%emt 0:00:02]} Nf6 {[%emt 0:00:00]} 32. Ne4 {[%emt 0:00:02]} Be6 {[%emt 0:00:09]} 33. Ng5+ {[%emt 0:00:04]} Ke7 {[%emt 0:00:05]} 34. Qe5 {[%emt 0:00:03]} Rh5 {[%emt 0:00:11]} 35. Qxe6+ {[%emt 0:00:02]} Kd8 {[%emt 0:00:03]} 36. Nf7+ {[%emt 0:00:05]} Kc7 {[%emt 0:00:00]} 37. Qd6+ {[%emt 0:00:04]} Kb6 {[%emt 0:00:01]} 38. c5+ {[%emt 0:00:01]} Ka6 {[%emt 0:00:04]} 39. Bf1+ {[%emt 0:00:03]} Ka5 {[%emt 0:00:01]} 40. Qd2# {[%emt 0:00:04]} 1-0

[Event "11th LCC Super Blitz 2019"]
[Site "London"]
[Date "2019.12.08"]
[Round "11.11"]
[White "Thatte, Nandinee"]
[Black "Dhemrait, Jagdeep"]
[Result "0-1"]
[ECO "E80"]
[WhiteElo "1270"]
[BlackElo "1834"]
[Annotator "NA"]
[PlyCount "60"]
[EventDate "2019.12.08"]
[EventType "swiss"]
[EventCountry "ENG"]
[SourceTitle "playchess.com"]
[Source "ChessBase"]
[SourceQuality "1"]
[TimeControl "180+2"]

1. d4 {[%emt 0:01:57]} Nf6 {[%emt 0:00:02]} 2. c4 d6 {[%emt 0:00:02]} 3. Nc3 g6 {[%emt 0:00:01]} 4. e4 {[%emt 0:00:01]} e5 5. d5 Bg7 6. f3 {[%emt 0:00:06]} Nbd7 {[%emt 0:00:03]} 7. Be3 {[%emt 0:00:02]} Qe7 {[%emt 0:00:07]} 8. Qd2 {[%emt 0:00:02]} O-O {[%emt 0:00:11]} 9. O-O-O {[%emt 0:00:02]} Ne8 {[%emt 0:00:03]} 10. Bh6 {[%emt 0:00:09]} c5 {[%emt 0:00:08]} 11. dxc6 {[%emt 0:00:13]} bxc6 {[%emt 0:00:02]} 12. Bxg7 {[%emt 0:00:03]} Kxg7 {[%emt 0:00:01]} 13. Nge2 {[%emt 0:00:05]} Rb8 {[%emt 0:00:12]} 14. g4 {[%emt 0:00:03]} Nc5 {[%emt 0:00:04]} 15. h4 {[%emt 0:00:07]} h6 {[%emt 0:00:06]} 16. Ng3 {[%emt 0:00:13]} Be6 {[%emt 0:00:24]} 17. h5 {[%emt 0:00:23]} g5 {[%emt 0:00:07]} 18. Nf5+ {[%emt 0:00:02]} Bxf5 {[%emt 0:00:01]} 19. gxf5 {[%emt 0:00:05]} f6 {[%emt 0:00:09]} 20. Rg1 {[%emt 0:00:12]} Kh7 {[%emt 0:00:04]} 21. Qg2 {[%emt 0:00:43]} Qb7 {[%emt 0:00:10]} 22. b3 {[%emt 0:00:02]} a5 {[%emt 0:00:07]} 23. Ne2 {[%emt 0:00:11]} a4 {[%emt 0:00:12]} 24. Kd2 {[%emt 0:00:16]} axb3 {[%emt 0:00:03]} 25. axb3 Qxb3 {[%emt 0:00:05]} 26. Rc1 {[%emt 0:00:07]} Qb2+ {[%emt 0:00:15]} 27. Rc2 {[%emt 0:00:08]} Qb4+ {[%emt 0:00:07]} 28. Kd1 {[%emt 0:00:04]} Ra8 {[%emt 0:00:04]} 29. Rc1 {[%emt 0:00:10]} Nd3 {[%emt 0:00:04]} 30. Rc2 {[%emt 0:00:13]} Qe1# {[%emt 0:00:04]} 0-1

[Event "11th LCC Super Blitz 2019"]
[Site "London"]
[Date "2019.12.08"]
[Round "11.12"]
[White "Sandhu, Manvith"]
[Black "Bergner, Matthias"]
[Result "1-0"]
[ECO "B06"]
[WhiteElo "1673"]
[BlackElo "1632"]
[Annotator "NA"]
[PlyCount "43"]
[EventDate "2019.12.08"]
[EventType "swiss"]
[EventCountry "ENG"]
[SourceTitle "playchess.com"]
[Source "ChessBase"]
[SourceQuality "1"]
[TimeControl "180+2"]

1. e4 {[%emt 0:00:00]} d5 {[%emt 0:00:00]} 2. exd5 {[%emt 0:00:00]} g6 {[%emt 0:00:00]} 3. Nf3 {[%emt 0:00:04]} Bg7 {[%emt 0:00:04]} 4. d4 {[%emt 0:00:02]} Nf6 {[%emt 0:00:01]} 5. Nc3 {[%emt 0:00:12]} b6 {[%emt 0:00:06]} 6. Bf4 {[%emt 0:00:09]} Bb7 {[%emt 0:00:04]} 7. Bb5+ {[%emt 0:00:06]} c6 {[%emt 0:00:10]} 8. dxc6 {[%emt 0:00:03]} Nxc6 {[%emt 0:00:06]} 9. Ne5 {[%emt 0:00:05]} Rc8 {[%emt 0:00:17]} 10. d5 {[%emt 0:00:12]} O-O {[%emt 0:00:04]} 11. Bxc6 {[%emt 0:00:12]} Bxc6 {[%emt 0:00:20]} 12. Nxc6 {[%emt 0:00:04]} Qd7 {[%emt 0:00:17]} 13. O-O {[%emt 0:00:10]} Nh5 {[%emt 0:00:45]} 14. Bd2 {[%emt 0:00:21]} Rfe8 {[%emt 0:00:18]} 15. Re1 {[%emt 0:00:04]} Rxc6 {[%emt 0:00:10]} 16. dxc6 {[%emt 0:00:19]} Qxc6 {[%emt 0:00:01]} 17. Qf3 {[%emt 0:00:09]} Qxf3 {[%emt 0:00:04]} 18. gxf3 {[%emt 0:00:01]} Rd8 {[%emt 0:00:06]} 19. Be3 {[%emt 0:00:04]} e6 {[%emt 0:00:03]} 20. Rad1 {[%emt 0:00:03]} Rxd1 {[%emt 0:00:19]} 21. Rxd1 {[%emt 0:00:00]} Bxc3 {[%emt 0:00:04]} 22. bxc3 {[%emt 0:00:02]} 1-0

[Event "11th LCC Super Blitz 2019"]
[Site "London"]
[Date "2019.12.08"]
[Round "11.14"]
[White "Tombolis, Christopher"]
[Black "Pham, Catherine"]
[Result "1-0"]
[ECO "E40"]
[WhiteElo "1655"]
[BlackElo "1280"]
[Annotator "NA"]
[PlyCount "87"]
[EventDate "2019.12.08"]
[EventType "swiss"]
[EventCountry "ENG"]
[SourceTitle "playchess.com"]
[Source "ChessBase"]
[SourceQuality "1"]
[TimeControl "180+2"]

1. d4 {[%emt 0:00:00]} Nf6 {[%emt 0:00:00]} 2. c4 {[%emt 0:00:01]} e6 {[%emt 0:00:01]} 3. Nc3 {[%emt 0:00:00]} Bb4 {[%emt 0:00:02]} 4. e3 {[%emt 0:00:01]} Bxc3+ {[%emt 0:00:04]} 5. bxc3 {[%emt 0:00:01]} Nc6 {[%emt 0:00:03]} 6. Bd3 {[%emt 0:00:07]} d5 {[%emt 0:00:04]} 7. cxd5 {[%emt 0:00:02]} Nxd5 {[%emt 0:00:03]} 8. c4 {[%emt 0:00:25]} Nf6 {[%emt 0:00:02]} 9. Nf3 {[%emt 0:00:01]} O-O {[%emt 0:00:07]} 10. O-O {[%emt 0:00:06]} b6 {[%emt 0:00:07]} 11. Rb1 {[%emt 0:00:06]} Bb7 {[%emt 0:00:01]} 12. c5 {[%emt 0:00:01]} Ne7 {[%emt 0:00:08]} 13. Ba3 {[%emt 0:00:07]} Rc8 {[%emt 0:00:10]} 14. Qa4 {[%emt 0:00:07]} Ra8 {[%emt 0:00:28]} 15. Ne5 {[%emt 0:00:14]} h6 {[%emt 0:00:32]} 16. Rfc1 {[%emt 0:00:09]} Qd5 {[%emt 0:00:16]} 17. c6 {[%emt 0:00:28]} Bc8 {[%emt 0:00:11]} 18. Bxe7 {[%emt 0:00:04]} Re8 {[%emt 0:00:03]} 19. Bxf6 {[%emt 0:00:04]} gxf6 {[%emt 0:00:05]} 20. Nf3 {[%emt 0:00:03]} Qd6 {[%emt 0:00:08]} 21. Qb5 {[%emt 0:00:04]} a6 {[%emt 0:00:09]} 22. Qh5 {[%emt 0:00:03]} Qf8 {[%emt 0:00:08]} 23. h3 {[%emt 0:00:17]} Qg7 {[%emt 0:00:08]} 24. Nh2 {[%emt 0:00:05]} e5 {[%emt 0:00:08]} 25. Bf5 {[%emt 0:00:02]} Bxf5 {[%emt 0:00:05]} 26. Qxf5 {[%emt 0:00:01]} exd4 {[%emt 0:00:06]} 27. Ng4 {[%emt 0:00:02]} Re6 {[%emt 0:00:06]} 28. exd4 {[%emt 0:00:08]} Qg5 {[%emt 0:00:09]} 29. Qxg5+ {[%emt 0:00:02]} fxg5 {[%emt 0:00:05]} 30. Re1 {[%emt 0:00:01]} Rxc6 {[%emt 0:00:02]} 31. d5 {[%emt 0:00:02]} Rd6 {[%emt 0:00:02]} 32. Rbc1 {[%emt 0:00:02]} Rc8 {[%emt 0:00:03]} 33. Rc6 {[%emt 0:00:04]} Rxd5 {[%emt 0:00:06]} 34. Nf6+ {[%emt 0:00:01]} Kg7 {[%emt 0:00:04]} 35. Nxd5 {[%emt 0:00:02]} Rd8 {[%emt 0:00:04]} 36. Nxc7 {[%emt 0:00:03]} a5 {[%emt 0:00:03]} 37. Rxb6 {[%emt 0:00:15]} Rd2 {[%emt 0:00:06]} 38. Ra6 {[%emt 0:00:10]} Rxa2 {[%emt 0:00:04]} 39. Re4 {[%emt 0:00:07]} f6 {[%emt 0:00:02]} 40. Nd5 {[%emt 0:00:04]} Kg6 {[%emt 0:00:01]} 41. Rxf6+ {[%emt 0:00:03]} Kg7 {[%emt 0:00:01]} 42. Re7+ {[%emt 0:00:02]} Kg8 {[%emt 0:00:02]} 43. Rd6 {[%emt 0:00:16]} Kf8 {[%emt 0:00:02]} 44. Rd8# {[%emt 0:00:02]} 1-0

[Event "11th LCC Super Blitz 2019"]
[Site "London"]
[Date "2019.12.08"]
[Round "11.14"]
[White "Patel, Zain"]
[Black "Essis, Essoh Jean Mathieu C"]
[Result "1-0"]
[ECO "C50"]
[WhiteElo "1253"]
[BlackElo "1438"]
[Annotator "NA"]
[PlyCount "57"]
[EventDate "2019.12.08"]
[EventType "swiss"]
[EventCountry "ENG"]
[SourceTitle "playchess.com"]
[Source "ChessBase"]
[SourceQuality "1"]
[TimeControl "180+2"]

1. e4 {[%emt 0:00:01]} e5 {[%emt 0:00:00]} 2. Nf3 {[%emt 0:00:01]} Nc6 {[%emt 0:00:01]} 3. Bc4 {[%emt 0:00:02]} h6 {[%emt 0:00:04]} 4. O-O {[%emt 0:00:04]} d6 {[%emt 0:00:00]} 5. Nc3 {[%emt 0:00:05]} Be7 {[%emt 0:00:12]} 6. d4 {[%emt 0:00:07]} Bg4 {[%emt 0:00:05]} 7. Bb5 {[%emt 0:00:08]} a6 {[%emt 0:00:11]} 8. Ba4 {[%emt 0:00:16]} Bf6 {[%emt 0:00:06]} 9. d5 {[%emt 0:00:08]} b5 {[%emt 0:00:01]} 10. Nxb5 {[%emt 0:00:07]} Nd4 {[%emt 0:00:08]} 11. Nbxd4+ {[%emt 0:00:06]} Kf8 {[%emt 0:00:01]} 12. Nb3 {[%emt 0:00:11]} Qb8 {[%emt 0:00:10]} 13. Bd2 {[%emt 0:00:10]} Qb6 {[%emt 0:00:05]} 14. h3 {[%emt 0:00:06]} Bh5 {[%emt 0:00:05]} 15. c4 {[%emt 0:00:11]} a5 {[%emt 0:00:04]} 16. Rc1 {[%emt 0:00:04]} Bg5 {[%emt 0:00:11]} 17. c5 {[%emt 0:00:05]} dxc5 {[%emt 0:00:05]} 18. Rxc5 {[%emt 0:00:08]} Bxf3 {[%emt 0:00:07]} 19. Qxf3 {[%emt 0:00:05]} Bxd2 {[%emt 0:00:04]} 20. Rc6 {[%emt 0:00:12]} Qb7 {[%emt 0:00:17]} 21. Nxd2 {[%emt 0:00:04]} Nf6 {[%emt 0:00:05]} 22. Nc4 {[%emt 0:00:06]} Qb4 {[%emt 0:00:02]} 23. b3 {[%emt 0:00:05]} Qc3 {[%emt 0:00:12]} 24. Qxc3 {[%emt 0:00:04]} Nxe4 {[%emt 0:00:04]} 25. Qf3 {[%emt 0:00:04]} Ng5 {[%emt 0:00:01]} 26. Qf5 {[%emt 0:00:05]} Re8 {[%emt 0:00:06]} 27. Rxc7 {[%emt 0:00:05]} Re7 {[%emt 0:00:07]} 28. Rc8+ {[%emt 0:00:03]} Re8 {[%emt 0:00:02]} 29. Rxe8# {[%emt 0:00:02]} 1-0